Cogmind - Beta 12 @@@ ROGUE MODE // 2023.05.05 @ 04:54:56 Player: maxwell Result: Destroyed by as-10464 with Assembled Focal Cannon Performance ------------- Evolutions (3) 1500 Regions Visited (12) 2400 Robots Destroyed (224) 1120 Value Destroyed (7373) 7373 Prototype IDs (27) 540 Alien Tech Used (0) 0 Bonus (172) 172 TOTAL SCORE: 13105 Bonus ------- High Alert Combat Kills 255 Follower Combat Kills 256 Destroyed Z-Imprinter 1000 Triggered Deep Caves Wall 500 Exposed GOLEM Chamber 500 Friendly Fire -2339 Cogmind --------- Core Integrity 0/700 Matter 102/300 Energy 1354/1480 System Corruption 0% Temperature Hot (204) Movement Walking (242) Ox2 Location -7/Deep Caves Parts ------- > --- POWER (2) -------- Improved Deuterium Engine Improved Deuterium Engine > --- PROPULSION (3) --- Zionite Composite Leg I Assembled Alloy Leg Assembled Alloy Leg > --- UTILITY (6) ------ Cargo Storage Unit Assembled Biocell Array Zionite Light Carapace Zionite Light Carapace Assembled Alloy Armor > --- WEAPON (2) ------- Light EM Pulse Cannon Improved EM Pulse Cannon > --- INVENTORY (30) --- Zionite Light DM Reactor Armored Treads Improved Medium Treads Armored Wheel Advanced Power Amplifier Experimental Heat Sink Experimental Heat Sink Improved Cooling System Improved Cooling System Zionite Biocell (600) Zionite Biocell (600) Zionite Biocell (600) Improved Propulsion Shielding Zionite Weapon Casing Zionite Light Carapace Improved Medium Armor Plating Medium Reflective Plating Neutron Cannon Neutron Cannon Flak Cannon Flak Cannon Proton Missile Launcher Proton Missile Launcher RU-N14's Throwing Claymores (10) RU-N14's Throwing Claymores (5) RU-N14's Throwing Claymores (6) Peak State ------------ > --- POWER ------------ Improved Deuterium Engine Zionite Light DM Reactor > --- PROPULSION ------- Zionite Composite Leg I Assembled Alloy Leg Assembled Alloy Leg > --- UTILITY ---------- Assembled Nanovents Assembled Nanovents Assembled Biocell Array Assembled Alloy Armor GOLEM Unit > --- WEAPON ----------- RU-N14's Throwing Claymores RU-N14's Throwing Claymores > --- INVENTORY -------- Cargo Storage Unit Zionite Light Carapace Improved Medium Armor Plating [Rating: 102] Favorites ----------- Power Improved Deuterium Engine Engine Improved Deuterium Engine Power Core Neutrino Core Reactor Zionite Light DM Reactor Propulsion Armored Wheel Treads Light Treads Leg Assembled Alloy Leg Wheel Armored Wheel Utility Humpback Device Improved Cooling System Storage Humpback Processor Improved Signal Interpreter Hackware Hacking Suite Protection Improved Medium Armor Plating Weapon Advanced Beam Rifle Energy Gun Advanced Beam Rifle Energy Cannon Heavy Ion Cannon Ballistic Gun Assault Rifle Ballistic Cannon Flak Cannon Launcher Rocket Launcher Special Weapon RU-N14's Throwing Claymores Impact Weapon Impact Mace Build | -11 -10 -10 -9 -9 -9 -8 -8 -7 -7 -7 -7 -7 ------- Run | Jun Mat Min Mat Min Exi Min Mat Fac Low Low Zio Dee Slots Evolved 6 | . . . 2 . . . 2 2 . . . . Power 1 | . . . . . . . . 1 . . . . Propulsion 1 | . . . . . . . . 1 . . . . Utility 4 | . . . 2 . . . 2 . . . . . Weapon . | . . . . . . . . . . . . . Parts Attached 254 | . 9 . 24 6 2 9 32 48 28 32 15 49 Power 21 | . 1 . 5 . . 1 . 5 3 3 . 3 Engine 18 | . 1 . 5 . . 1 . 5 3 2 . 1 Core 1 | . . . . . . . . . . 1 . . Reactor 2 | . . . . . . . . . . . . 2 Propulsion 21 | . 3 . 3 . . 1 1 4 2 2 . 5 Treads 7 | . 2 . . . . . . 2 1 . . 2 Leg 2 | . . . . . . . . . . . . 2 Wheel 12 | . 1 . 3 . . 1 1 2 1 2 . 1 Hover . | . . . . . . . . . . . . . Flight . | . . . . . . . . . . . . . Utility 120 | . 3 . 6 2 2 2 20 24 14 17 6 24 Device 54 | . 1 . 3 1 . 1 7 10 12 10 3 6 Storage 11 | . 1 . 1 . 1 . 3 1 1 1 . 2 Processor 3 | . . . 1 . . . . 1 . . . 1 Hackware 4 | . . . . . . . 2 2 . . . . Protection 48 | . 1 . 1 1 1 1 8 10 1 6 3 15 Artifact . | . . . . . . . . . . . . . Weapon 92 | . 2 . 10 4 . 5 11 15 9 10 9 17 Energy Gun 24 | . . . 4 . . 4 11 4 . . 1 . Energy Cannon 33 | . 2 . 4 3 . . . 5 5 4 2 8 Ballistic Gun 1 | . . . . . . . . 1 . . . . Ballistic Cannon 5 | . . . . . . . . . 1 . 1 3 Launcher 18 | . . . 2 1 . 1 . 2 2 5 4 1 Special Weapon 5 | . . . . . . . . . . . . 5 Impact Weapon 6 | . . . . . . . . 3 1 1 1 . Slashing Weapon . | . . . . . . . . . . . . . Piercing Weapon . | . . . . . . . . . . . . . Special Melee Weapon . | . . . . . . . . . . . . . Unidentified Prototypes 22 | . . . 4 . . . 3 2 3 . . 10 Corrupted Parts 1 | . . . . . . . . . . 1 . . System Corruption 1 | . . . . . . . . . . 1 . . Parts Lost 45 | . 3 . 2 . . 5 6 14 1 7 . 7 Power 7 | . 1 . . . . 1 . 3 . 2 . . Propulsion 7 | . 1 . 1 . . 1 . . . 2 . 2 Utility 23 | . 1 . 1 . . 1 5 8 1 2 . 4 Weapon 8 | . . . . . . 2 1 3 . 1 . 1 Highest Loss Streak 5 | . 2 . 1 . . 4 3 5 1 4 . 4 To Critical Strikes . | . . . . . . . . . . . . . Average Slot Usage (%) 86 | . 98 100 97 100 73 87 89 90 76 72 87 85 Engine 11 | . 14 14 11 11 11 11 9 14 14 9 15 9 Treads 3 | . 14 14 . . . . . 7 6 . . 4 Wheel 17 | . 3 14 22 22 22 21 17 14 15 18 23 14 Device 12 | . 3 14 20 22 15 11 8 7 13 11 21 8 Storage 8 | . 14 14 11 11 11 11 9 7 6 6 7 7 Hackware 1 | . . . . . . . 9 5 . . . . Protection 9 | . 9 . 9 11 10 10 17 14 1 7 6 15 Energy Gun 5 | . 14 . 14 18 . 21 17 5 . . 1 . Energy Cannon 8 | . . 28 7 3 2 . . 8 13 11 1 4 Launcher 1 | . . . . . . . . . . 2 9 2 Naked Turns . | . . . . . . . . . . . . . Heaviest Build 254 | 11 34 34 104 107 217 221 228 247 254 248 191 192 Greatest Support 84 | 20 40 20 28 28 28 28 28 28 40 44 44 84 Greatest Overweight (x) 20 | . 3 3 3 3 7 7 9 20 9 6 4 15 Average Overweight (x) 4 | . 1 1 2 3 4 7 7 8 6 5 3 3 Largest Inventory Capacity 35 | . 15 15 25 25 35 35 35 35 35 35 30 30 Average Capacity 28 | . 14 15 22 25 30 35 35 35 30 30 30 29 Most Carried 35 | . 12 12 25 25 32 31 35 35 35 35 30 30 Average Carried 26 | . 5 11 21 24 28 27 32 32 29 28 29 26 Final Capacity 35 | 8 15 15 25 25 35 35 35 35 35 30 30 30 Final Carried 35 | 6 10 12 25 25 32 29 32 34 35 30 30 26 Class Distribution -------------------- 63% | Hauler-Mutant 25% | Mutant 5% | Hauler-Skirmisher 3% | Hauler-Assassin Dominant Class ---------------- Mutant | -10/Materials Mutant | -10/Mines Mutant | -9/Materials Mutant | -9/Mines Hauler-Mutant | -9/Exiles Hauler-Mutant | -8/Mines Hauler-Mutant | -8/Materials Hauler-Mutant | -7/Factory Hauler-Mutant | -7/Lower Caves Hauler-Mutant | -7/Lower Caves Hauler-Mutant | -7/Zion Hauler-Mutant | -7/Deep Caves Resources | -11 -10 -10 -9 -9 -9 -8 -8 -7 -7 -7 -7 -7 ----------- Run | Jun Mat Min Mat Min Exi Min Mat Fac Low Low Zio Dee Matter Collected 5848 | 197 280 23 275 96 . 308 335 534 1256 1957 167 420 Remotely . | . . . . . . . . . . . . . Salvage Created 9249 | . 765 139 1828 . . 408 1578 1977 681 963 . 910 Parts 438 | . 63 11 107 . . 14 75 75 28 37 . 28 Haulers Intercepted 14 | . 1 . 6 . . . 4 2 1 . . . Recyclers Shooed 3 | . 1 . 1 . . . . 1 . . . . Parts Field Recycled . | . . . . . . . . . . . . . Retrieved Matter . | . . . . . . . . . . . . . Parts Self-Destructed 40 | . . . . . . . . . 18 21 1 . Prevented 4 | . . . . . . . . . 4 . . . Kills | -11 -10 -10 -9 -9 -9 -8 -8 -7 -7 -7 -7 -7 ------- Run | Jun Mat Min Mat Min Exi Min Mat Fac Low Low Zio Dee Combat Hostiles Destroyed 209 | . 15 7 32 1 . 13 26 32 12 25 . 46 Melee 1 | . . . . . . . . 1 . . . . Guns 73 | . 15 . 19 . . 8 17 14 . . . . Cannons 38 | . . 7 11 1 . . . 10 4 . . 5 AOE 82 | . . . 2 . . 5 4 3 8 23 . 37 Classes Destroyed 27 | . 8 1 3 . . 1 3 2 2 4 . 3 Worker 4 | . 1 1 1 . . . 1 . . . . . Builder 1 | . . . . . . . 1 . . . . . Tunneler 1 | . 1 . . . . . . . . . . . Hauler 14 | . 1 . 6 . . . 4 2 1 . . . Recycler 6 | . 1 . 1 . . 1 . 3 . . . . Minesweeper 2 | . . . . . . . . . 2 . . . Mechanic 3 | . 1 . 1 . . . 1 . . . . . Operator 3 | . . . 1 . . . 1 1 . . . . Watcher 16 | . 3 . 5 . . . 4 4 . . . . Swarmer 40 | . 5 3 6 . . 4 7 3 3 9 . . Grunt 80 | . 10 1 16 . . 8 12 12 8 13 . . Brawler 4 | . . . 1 . . . . 3 . . . . Duelist 3 | . . . . . . . 2 . . 1 . . Protector 1 | . . . . . . . . . . 1 . . Sentry 18 | . . . 9 . . . 4 4 . 1 . . Specialist 4 | . . . . . . . . 4 . . . . Hunter 4 | . . . . . . 1 . 2 1 . . . Programmer 4 | . . . . . . . . 4 . . . . Heavy 1 | . . . . . . . 1 . . . . . Behemoth 1 | . . . . . . . . . . 1 . . Z-Light 5 | . . . . . . . . . . . . 5 Samaritan 2 | . . . . . . . . . . 2 . . Tinkerer 1 | . . . . . . . . . 1 . . . Assembler 2 | . . . . . . . . . . . . 2 Assembled 39 | . . 3 . . . . . . . . . 36 Golem 4 | . . . . . . . . . . . . 4 Thug 1 | . . . . . . . . . . 1 . . Savage 1 | . . . . . . . . . 1 . . . Butcher 1 | . . . . . . . . . . 1 . . Mutant 1 | . . . . . . . . . . 1 . . Best Kill Streak 35 | . 6 3 11 1 . 8 4 5 5 9 . 35 Combat Bots Only 34 | . 5 3 4 1 . 8 4 5 5 9 . 34 Max Kills in Single Turn 19 | . 1 1 2 1 . 2 2 3 3 4 . 19 Gunslinging 1 | . . . . . . . 1 . . . . . Exploded 19 | . . . 1 . . 2 2 3 3 4 . 19 Melee 1 | . . . . . . . . 1 . . . . Uniques/NPCs Destroyed 2 | . . . . 1 . . . . . . . 1 YI-UF0 (-9/Mines) Z-Imprinter (-7/Deep Caves) Combat | -11 -10 -10 -9 -9 -9 -8 -8 -7 -7 -7 -7 -7 -------- Run | Jun Mat Min Mat Min Exi Min Mat Fac Low Low Zio Dee Damage Taken 9314 | . 775 135 544 105 . 762 1600 2823 350 894 . 1326 Core 1320 | . 117 44 48 18 . 116 230 349 61 49 . 288 Absorbed by Shields 284 | . . . 179 39 . 8 . 58 . . . . Redirected to Shielding 498 | . . . . . . . 108 373 8 9 . . Regen/Repaired (Parts) 641 | . . . . . . . 93 248 . . 300 . Core Remaining (%) 61 | 100 . 35 . . . 54 58 . . . . . Volleys Fired 551 | . 75 29 87 9 . 30 76 106 40 41 2 56 Largest 2 | . 2 2 2 2 . 2 2 2 2 2 1 2 Hottest 160 | . 60 136 136 122 . 122 160 160 145 160 80 125 Shots Fired 1012 | . 149 58 171 18 . 55 151 208 57 61 2 82 Gun 549 | . 149 . 98 16 . 50 151 84 . . 1 . Cannon 405 | . . 58 70 2 . . . 122 52 40 1 60 Launcher 39 | . . . 3 . . 5 . 2 5 21 . 3 Special 19 | . . . . . . . . . . . . 19 Kinetic 81 | . 75 . . . . . . . . . . 6 Thermal 675 | . 74 58 168 16 . 50 61 206 23 18 1 . Explosive 54 | . . . 3 . . 5 . 2 5 20 . 19 Electromagnetic 202 | . . . . 2 . . 90 . 29 23 1 57 Robot Hit Streak 42 | . 10 6 15 7 . 7 14 42 10 16 . 20 Robot Miss Streak 13 | . 4 3 6 2 . 4 5 4 2 1 . 13 Penetration Max . | . . . . . . . . . . . . . Secondary Targets 7 | . 2 . 1 . . 1 3 . . . . . Max Gunslinging Chain 1 | . 1 . 1 . . 1 1 . . . . . Shots Hit Robots 684 | . 92 11 110 11 . 30 125 165 37 39 . 64 Core Hits 450 | . 40 8 50 2 . 26 68 82 29 65 . 80 Critical Kills 4 | . . . . . . . . 3 . 1 . . Critical Parts Destroyed 2 | . . . . . . . . 2 . . . . Critical Strikes 24 | . . . 6 1 . 5 3 5 . 1 . 3 Burn 15 | . . . 6 1 . 5 3 . . . . . Meltdown 3 | . . . . . . . . 2 . 1 . . Smash 3 | . . . . . . . . 3 . . . . Sever 3 | . . . . . . . . . . . . 3 Melee Attacks 76 | . . . . . . . . 14 28 27 7 . Impact 76 | . . . . . . . . 14 28 27 7 . Slashing . | . . . . . . . . . . . . . Piercing . | . . . . . . . . . . . . . Sneak Attacks 1 | . . . . . . . . 1 . . . . Combat Hostiles 1 | . . . . . . . . 1 . . . . Follow-up Attacks . | . . . . . . . . . . . . . Damage Inflicted 24111 | . 1207 330 2645 219 . 1440 2863 4564 1606 3529 . 5708 Guns 7447 | . 1207 . 1468 200 . 540 2366 1666 . . . . Cannons 6332 | . . 316 962 19 . . . 2231 954 918 . 932 Explosions 9384 | . . . 215 . . 900 497 189 652 2611 . 4320 Melee 478 | . . . . . . . . 478 . . . . Ramming 14 | . . 14 . . . . . . . . . . Kinetic 709 | . 650 . . . . . . . . . . 59 Thermal 10636 | . 557 316 2430 200 . 540 1494 3897 406 632 . 164 Explosive 8223 | . . . 215 . . 900 . 189 587 2296 . 4036 Electromagnetic 3595 | . . . . 19 . . 1369 . 613 601 . 993 Impact 478 | . . . . . . . . 478 . . . . Slashing 456 | . . . . . . . . . . . . 456 Piercing . | . . . . . . . . . . . . . Highest Corruption 9 | . . . 2 2 2 2 2 9 9 1 1 . Average Corruption 3 | . . . 1 2 2 2 1 5 4 1 1 . Corruption Purged 9 | . . . . . . . . . 9 . . . Corruption Blocked . | . . . . . . . . . . . . . Effects 167 | . . . 3 16 4 20 1 64 57 2 . . Message Errors 42 | . . . 1 3 1 6 . 18 13 . . . Matter Fused 39 | . . . 1 5 1 5 1 13 13 . . . Heat Flow Errors 23 | . . . . 4 . 2 . 6 10 1 . . Energy Discharges 22 | . . . . 1 1 1 . 10 8 1 . . Parts Rejected 1 | . . . . . . . . 1 . . . . Parts Fused 4 | . . . . . . . . 3 1 . . . Data Loss (minor) 18 | . . . 1 2 . 3 . 7 5 . . . Data Loss (major) 7 | . . . . . . 1 . 4 2 . . . Misfires 5 | . . . . . . 1 . . 4 . . . Alerts 3 | . . . . 1 1 . . 1 . . . . Weapon Failures 3 | . . . . . . 1 . 1 1 . . . Overload Shots . | . . . . . . . . . . . . . Overflow Damage 572 | . . . 14 . . 36 39 161 48 106 . 168 Projectiles 210 | . . . 14 . . . . 64 22 34 . 76 Explosions 269 | . . . . . . 36 39 4 26 72 . 92 Melee 93 | . . . . . . . . 93 . . . . Knockbacks 4 | . . . . . . . . 1 . . . 3 Impact 1 | . . . . . . . . 1 . . . . Kinetic 3 | . . . . . . . . . . . . 3 Secondary . | . . . . . . . . . . . . . Self-Inflicted Damage 448 | . . . 33 . . 134 101 . 74 34 . 72 Shots 15 | . . . 1 . . 5 3 . 2 2 . 2 Rammed 7 | . . 7 . . . . . . . . . . Targets Rammed 7 | . . 7 . . . . . . . . . . Kicked . | . . . . . . . . . . . . . Crushed . | . . . . . . . . . . . . . Highest Temperature 431 | . 186 165 306 218 . 184 387 424 291 431 . 401 Average Temperature 75 | . 59 49 45 90 . 20 84 95 85 174 . 107 Received Heat Transfer 2646 | . 348 . 208 . . 237 513 759 135 210 . 236 Effects 11 | . . . . . . . . 2 2 4 . 3 Shutdowns 3 | . . . . . . . . . . 2 . 1 Energy Bleed 2 | . . . . . . . . . . 1 . 1 Interference 4 | . . . . . . . . 2 2 . . . Short Circuit 1 | . . . . . . . . . . . . 1 Damage (minor) 1 | . . . . . . . . . . 1 . . Siege Activations . | . . . . . . . . . . . . . Robots Corrupted 9 | . . . . . . . 2 . 2 1 . 4 Combat Hostiles 6 | . . . . . . . 2 . . . . 4 Parts Fried 30 | . . . . . . . 16 2 4 7 . 1 Impact Corruptions 4 | . . . . . . . . 4 . . . . Robots Melted 9 | . . . . . . . 3 4 . 2 . . Combat Hostiles 8 | . . . . . . . 3 3 . 2 . . Parts Melted 43 | . . . 11 . . 2 5 23 1 1 . . Heat Transferred 19037 | . 1200 555 4662 444 . 1332 2832 6367 583 950 . 112 Parts Sabotaged . | . . . . . . . . . . . . . Parts Stolen . | . . . . . . . . . . . . . Parts Stripped . | . . . . . . . . . . . . . Power Chain Reactions 13 | . . . . . . . 8 . 1 1 . 3 Missiles Intercepted . | . . . . . . . . . . . . . Alert | -11 -10 -10 -9 -9 -9 -8 -8 -7 -7 -7 -7 -7 ------- Run | Jun Mat Min Mat Min Exi Min Mat Fac Low Low Zio Dee Peak Influence 813 | . 242 126 813 313 . 317 484 359 . . . . Initial 313 | . . 51 . 313 . . . 139 . . . . Average 209 | . 104 34 483 136 . 108 320 164 . . . . Maximum Alert Level 3 | . 1 . 3 1 . 1 2 1 . . . . Low Security (%) 52 | . 85 100 11 67 . 74 1 59 . . . . Level 1 34 | . 14 . 26 32 . 25 81 40 . . . . Level 2 8 | . . . 33 . . . 17 . . . . . Level 3 4 | . . . 28 . . . . . . . . . Level 4 . | . . . . . . . . . . . . . Level 5 . | . . . . . . . . . . . . . High Security . | . . . . . . . . . . . . . Max Security . | . . . . . . . . . . . . . Squads Dispatched 24 | . 4 . 5 . . 1 4 9 . 1 . . Investigation 10 | . 3 . 3 . . . 2 2 . . . . Extermination 3 | . . . . . . . . 3 . . . . Reinforcement 10 | . 1 . 2 . . 1 2 4 . . . . Assault 1 | . . . . . . . . . . 1 . . Garrison . | . . . . . . . . . . . . . Intercept . | . . . . . . . . . . . . . Searches Triggered . | . . . . . . . . . . . . . Construction Impeded 2 | . . . . . . 1 1 . . . . . Haulers Reinforced . | . . . . . . . . . . . . . Active Scanning Responses . | . . . . . . . . . . . . . Cargo Convoy Interrupts . | . . . . . . . . . . . . . Stealth | -11 -10 -10 -9 -9 -9 -8 -8 -7 -7 -7 -7 -7 --------- Run | Jun Mat Min Mat Min Exi Min Mat Fac Low Low Zio Dee Distress Signals 13 | . . . 4 . . . 6 3 . . . . Communications Jammed . | . . . . . . . . . . . . . Distress Signals . | . . . . . . . . . . . . . Times Spotted 252 | . 26 6 41 4 . 13 40 41 12 23 . 46 Peak Tracking Total 36 | . 4 2 5 1 . 6 5 6 5 10 . 36 Tactical Retreats 13 | . . . 1 3 . . 2 5 . 2 . . Traps | -11 -10 -10 -9 -9 -9 -8 -8 -7 -7 -7 -7 -7 ------- Run | Jun Mat Min Mat Min Exi Min Mat Fac Low Low Zio Dee Traps Triggered 11 | . 1 . 3 . . . 4 3 . . . . Indirectly . | . . . . . . . . . . . . . Trap Hack Attempts . | . . . . . . . . . . . . . Triggered . | . . . . . . . . . . . . . Disarmed . | . . . . . . . . . . . . . Reprogrammed . | . . . . . . . . . . . . . Reused 3 | . . 3 . . . . . . . . . . Traps Extracted . | . . . . . . . . . . . . . Installed 4 | . . 4 . . . . . . . . . . Triggered 5 | . . 3 . . . . 1 . 1 . . . Machines | -11 -10 -10 -9 -9 -9 -8 -8 -7 -7 -7 -7 -7 ---------- Run | Jun Mat Min Mat Min Exi Min Mat Fac Low Low Zio Dee Machines Disabled 16 | . . . 4 . . 1 3 1 1 2 1 3 Max in Single Turn 1 | . . . 1 . . 1 1 1 1 1 1 1 Garrison Access 2 | . . . . . . . 1 1 . . . . Machines Repaired . | . . . . . . . . . . . . . Machines Sabotaged . | . . . . . . . . . . . . . Overloaded Fab Kills . | . . . . . . . . . . . . . Hacking | -11 -10 -10 -9 -9 -9 -8 -8 -7 -7 -7 -7 -7 --------- Run | Jun Mat Min Mat Min Exi Min Mat Fac Low Low Zio Dee Machines Accessed 38 | . 7 . 10 . 1 . 7 11 2 . . . Terminals 21 | . 5 . 6 . . . 4 6 . . . . Fabricators 2 | . . . . . . . . 2 . . . . Repair Stations 3 | . . . . . . . 2 1 . . . . Recycling Units 4 | . 2 . 2 . . . . . . . . . Scanalyzers 3 | . . . 2 . . . . 1 . . . . Garrison Access 2 | . . . . . . . 1 1 . . . . Total Hacks 119 | . 21 . 30 . 1 . 29 36 2 . . . Successful 63 | . 8 . 16 . 1 . 17 19 2 . . . Failed 56 | . 13 . 14 . . . 12 17 . . . . Catastrophic 12 | . 3 . 5 . . . 1 3 . . . . Database Lockouts . | . . . . . . . . . . . . . Manual 74 | . 19 . 21 . . . 15 18 . . 1 . Terminals 68 | . 16 . 18 . . . 17 17 . . . . Fabricators 5 | . . . . . . . . 5 . . . . Repair Stations 16 | . . . . . . . 7 9 . . . . Recycling Units 8 | . 5 . 3 . . . . . . . . . Scanalyzers 13 | . . . 9 . . . . 4 . . . . Garrison Access 6 | . . . . . . . 5 1 . . . . Terminal Hacks 20 | . 6 . 2 . 1 . 6 3 2 . . . Record 1 | . . . . . 1 . . . . . . . Part Schematic 3 | . 3 . . . . . . . . . . . Robot Analysis 5 | . 3 . 1 . . . 1 . . . . . Open Door 2 | . . . . . . . . . 2 . . . Branch Access Points 1 | . . . . . . . . 1 . . . . Terminal Index 1 | . . . . . . . 1 . . . . . Alert Level 3 | . . . . . . . 2 1 . . . . Unreport Threat 2 | . . . . . . . 1 1 . . . . Zone Layout 2 | . . . 1 . . . 1 . . . . . Fabricator Hacks 3 | . . . . . . . . 3 . . . . Network Status 1 | . . . . . . . . 1 . . . . Load Schematic 1 | . . . . . . . . 1 . . . . Build 1 | . . . . . . . . 1 . . . . Repair Station Hacks 14 | . . . . . . . 6 8 . . . . Scan Component 7 | . . . . . . . 3 4 . . . . Repair 7 | . . . . . . . 3 4 . . . . Recycling Unit Hacks . | . . . . . . . . . . . . . Scanalyzer 11 | . . . 9 . . . . 2 . . . . Insert Component 5 | . . . 4 . . . . 1 . . . . Analyze 6 | . . . 5 . . . . 1 . . . . Garrison Access Hacks 1 | . . . . . . . . 1 . . . . Seal Access 1 | . . . . . . . . 1 . . . . Unauthorized Hacks 14 | . 2 . 5 . . . 5 2 . . . . Terminals 9 | . 1 . 3 . . . 4 1 . . . . Track 2 | . . . 1 . . . 1 . . . . . Assimilate 1 | . 1 . . . . . . . . . . . Botnet 4 | . . . 1 . . . 2 1 . . . . Operators 2 | . . . 1 . . . 1 . . . . . Fabricators 1 | . . . . . . . . 1 . . . . Report 1 | . . . . . . . . 1 . . . . Repair Stations . | . . . . . . . . . . . . . Recycling Units 3 | . 1 . 2 . . . . . . . . . Tunnel 3 | . 1 . 2 . . . . . . . . . Scanalyzers . | . . . . . . . . . . . . . Garrison Access 1 | . . . . . . . 1 . . . . . Jam 1 | . . . . . . . 1 . . . . . Data Cores Recovered 1 | . . . . . . . 1 . . . . . Used 1 | . . . . . . . 1 . . . . . Hacking Detections 29 | . 6 . 8 . . . 7 8 . . . . Full Trace Events 3 | . 2 . . . . . . 1 . . . . Feedback Events . | . . . . . . . . . . . . . Feedback Blocked . | . . . . . . . . . . . . . Robot Schematics Acquired 4 | . . . . . . . . . . . 4 . Robots Built . | . . . . . . . . . . . . . Authchips . | . . . . . . . . . . . . . Time . | . . . . . . . . . . . . . Total Robot Build Rating . | . . . . . . . . . . . . . Part Schematics Acquired 18 | . 2 . 3 . . . . . . . 13 . Parts Built 1 | . . . . . . . . 1 . . . . Authchips 1 | . . . . . . . . 1 . . . . Time 25 | . . . . . . . . 25 . . . . Total Part Build Rating 1 | . . . . . . . . 1 . . . . Parts Repaired 7 | . . . . . . . 3 4 . . . . Time 255 | . . . . . . . 121 134 . . . . Parts Recycled . | . . . . . . . . . . . . . Recycled Matter . | . . . . . . . . . . . . . Retrieved Matter . | . . . . . . . . . . . . . Retrieved Components . | . . . . . . . . . . . . . Parts Scanalyzed 5 | . . . 4 . . . . 1 . . . . Part Schematics Acquired 3 | . . . 3 . . . . . . . . . Parts Damaged . | . . . . . . . . . . . . . Bothacking | -11 -10 -10 -9 -9 -9 -8 -8 -7 -7 -7 -7 -7 ------------ Run | Jun Mat Min Mat Min Exi Min Mat Fac Low Low Zio Dee Used RIF Installer . | . . . . . . . . . . . . . Robots Hacked . | . . . . . . . . . . . . . Non-combat . | . . . . . . . . . . . . . Combat . | . . . . . . . . . . . . . Robot Hacks Applied . | . . . . . . . . . . . . . Relay Couplers Released 5 | . . . . . . . 2 3 . . . . Machine Destruction 2 | . . . . . . . 2 . . . . . Programmers 3 | . . . . . . . . 3 . . . . Fabnet Peak Effective % . | . . . . . . . . . . . . . Robots Rewired 2 | . . . . . . . . . . 2 . . Allies Hacked . | . . . . . . . . . . . . . Hacks Repelled . | . . . . . . . . . . . . . Allies | -11 -10 -10 -9 -9 -9 -8 -8 -7 -7 -7 -7 -7 -------- Run | Jun Mat Min Mat Min Exi Min Mat Fac Low Low Zio Dee Total Allies 9 | . 1 3 . . . . . . . 2 2 1 Largest Group 4 | . 1 4 1 . . . . . . 2 2 2 Highest-Rated Group 192 | . 10 50 16 . . . . . . 46 192 192 Highest-Rated Ally 99 | . 10 16 16 . . . . . . 30 96 99 Total Orders . | . . . . . . . . . . . . . Ally Attacks 90 | . . 4 25 . . . . . . 8 . 53 Total Damage 2574 | . . 27 302 . . . . . . 162 . 2083 Kills 16 | . . . 4 . . . . . . 1 . 11 Allies Corrupted . | . . . . . . . . . . . . . Allies Melted 1 | . . . . . . . . . . . . 1 Intel | -11 -10 -10 -9 -9 -9 -8 -8 -7 -7 -7 -7 -7 ------- Run | Jun Mat Min Mat Min Exi Min Mat Fac Low Low Zio Dee Robot Analysis Total 5 | . 3 . 1 . . . 1 . . . . . Derelict Logs Recovered 7 | . . 3 . . . . . . 2 1 1 . Drone Launches . | . . . . . . . . . . . . . Drone Recoveries . | . . . . . . . . . . . . . Exploration | -11 -10 -10 -9 -9 -9 -8 -8 -7 -7 -7 -7 -7 ------------- Run | Jun Mat Min Mat Min Exi Min Mat Fac Low Low Zio Dee Turns Passed 26552 | . 972 1791 1991 1248 562 1269 2000 2896 4114 3850 1918 3941 Spaces Moved 12553 | 1 434 729 1192 838 328 582 739 1002 1865 2034 1219 1590 Core . | . . . . . . . . . . . . . Treads 938 | . 144 529 . . . . . . . . . 265 Legs 206 | 1 127 . . . . . . . . . . 78 Wheels 11409 | . 163 200 1192 838 328 582 739 1002 1865 2034 1219 1247 Hover . | . . . . . . . . . . . . . Flight . | . . . . . . . . . . . . . Fastest Speed 95 | 120 110 125 105 140 140 200 200 215 110 95 141 156 Average Speed 178 | 120 149 208 130 140 168 200 207 219 187 170 152 201 Slowest Speed 405 | 120 240 240 140 140 200 200 225 390 230 185 156 405 Overloaded Moves . | . . . . . . . . . . . . . Propulsion Burnouts . | . . . . . . . . . . . . . Robots Hopped . | . . . . . . . . . . . . . Cave-ins Triggered . | . . . . . . . . . . . . . Exploration Rate (%) 75 | 2 94 97 97 100 60 94 60 33 96 96 86 72 Regions Visited 12 Branch Regions 8 Pre-discovered Areas 6 | . 1 1 2 . 1 . . . 1 . . . Known Exits Taken 4 | . . . 1 . . . . 1 1 1 . . Unknown Exits Taken 8 | 1 1 1 . 1 1 1 1 . . . 1 . Scrap Searched 26 | . . 1 . 1 . 3 . . 8 9 4 . Spaces Dug 104 | . . 4 30 . . . . 4 40 24 2 . Terrain Destroyed 482 | . . 8 31 2 . 39 37 22 83 148 2 110 Melee 53 | . . . . . . . . . 27 24 2 . Projectile 29 | . . 8 1 2 . 1 . 11 3 . . 3 AOE 400 | . . . 30 . . 38 37 11 53 124 . 107 Terrain Rammed . | . . . . . . . . . . . . . Walls Destroyed . | . . . . . . . . . . . . . Machines Disabled . | . . . . . . . . . . . . . Actions | -11 -10 -10 -9 -9 -9 -8 -8 -7 -7 -7 -7 -7 --------- Run | Jun Mat Min Mat Min Exi Min Mat Fac Low Low Zio Dee Total 15647 | . 608 934 1479 899 339 632 1053 1461 2410 2303 1268 2261 Wait 1677 | . 76 164 106 30 . 6 164 227 339 107 7 451 Move 12541 | . 433 728 1191 837 327 581 738 1001 1864 2033 1218 1590 Hop . | . . . . . . . . . . . . . Pick Up 259 | . 10 2 40 8 5 5 19 36 49 32 7 46 Fast Attach 63 | . 3 . 7 1 2 . 13 6 9 8 5 9 Attach 108 | . 6 . 8 1 . 7 14 30 9 12 3 18 Detach 39 | . . . . . . . 5 4 5 6 . 19 Swap 83 | . . . 9 4 . 2 5 12 10 12 7 22 Drop 213 | . 5 . 31 9 5 1 19 17 57 7 12 50 Fire 551 | . 75 29 87 9 . 30 76 106 40 41 2 56 Melee 76 | . . . . . . . . 14 28 27 7 . Ram . | . . . . . . . . . . . . . Kick . | . . . . . . . . . . . . . Crush 7 | . . 7 . . . . . . . . . . Escape Stasis 8 | . . . . . . . . 8 . . . . Rewire 18 | . . . . . . . . . . 18 . . Trap 4 | . . 4 . . . . . . . . . . Miscellaneous . | . . . . . . . . . . . . . Route ------- -11/Junkyard -10/Materials (discovered 5 exits: *Mat x3 / [*Min x2]) -10/Mines (discovered 2 exits: *Mat x2) -9/Materials (discovered 4 exits: *Mat x3 / *Min) -9/Mines (discovered 4 exits: *Mat x2 / *Exi / *Zio) -9/Exiles -8/Mines (discovered 2 exits: *Mat x2) -8/Materials (discovered 3 exits: *Fac x2 / [*Sto]) -7/Factory (discovered 2 exits: *Low x2) -7/Lower Caves -7/Lower Caves (discovered 2 exits: *Fac / *Zio) -7/Zion (discovered 2 exits: [*Dee] / [*Pro]) -7/Deep Caves History --------- Turn | Location | Event 1 | -11/Junkyard | Discovered new exit (range 0) 1 | -11/Junkyard | Entered Materials 314 | -10/Materials | Build established: Mutant 542 | -10/Materials | Discovered new exit (range 12) 782 | -10/Materials | Discovered new exit (range 16) 816 | -10/Materials | Discovered new exit (range 15) 914 | -10/Materials | Discovered new exit (range 12) 944 | -10/Materials | Discovered new exit (range 12) 973 | -10/Materials | Entered Mines 973 | -10/Mines | Accompanied by 1 ally 1003 | -10/Mines | Learned 2 Materials zone layouts 1021 | -10/Mines | Met a Derelict bent on vengeance 1030 | -10/Mines | Found a hidden stash of uninstalled traps 1286 | -10/Mines | A weapon hastily lodged in a ceiling crevice suddenly fell to the ground 1398 | -10/Mines | Learned location of Zion (-7) 1734 | -10/Mines | Discovered new exit (range 16) 1750 | -10/Mines | Received a Rocket Launcher from a helpful Derelict 2011 | -10/Mines | Learned Materials non-interactive machine intel 2066 | -10/Mines | Assisted by bots powering up and referring to "LRC-V3" 2158 | -10/Mines | Excavation squad dispatched 2158 | -10/Mines | A large section of the Mines collapsed 2192 | -10/Mines | Core integrity fell below 50% 2589 | -10/Mines | Discovered new exit (range 11) 2764 | -10/Mines | Entered Materials 2764 | -9/Materials | Accompanied by 1 ally 2764 | -9/Materials | Evolved 2 slots: Utility x2 2765 | -9/Materials | Identified exit to Mines 2766 | -9/Materials | Loaded intel: 45 non-interactive machine locations 3258 | -9/Materials | Discovered new exit (range 5) 4171 | -9/Materials | Discovered new exit (range 15) 4551 | -9/Materials | Discovered new exit (range 10) 4755 | -9/Materials | Entered Mines 4756 | -9/Mines | Assembled infested the area 4836 | -9/Mines | Found a damaged Exp. Sensor Array with a note attached 4840 | -9/Mines | Found Prototype Device 4858 | -9/Mines | Joined a pair of Derelicts in attacking an 0b10 outpost 5006 | -9/Mines | Discovered new exit (range 7) 5017 | -9/Mines | Deemed a non-threat by the Exiles lab entrance 5017 | -9/Mines | Discovered new exit (range 5) 5052 | -9/Mines | A Derelict revealed a hidden shortcut to a safe place 5192 | -9/Mines | Discovered new exit (range 16) 5904 | -9/Mines | Destroyed YI-UF0 6003 | -9/Mines | Entered Exiles 6038 | -9/Exiles | Met 8R-AWN 6061 | -9/Exiles | Met EX-HEX 6123 | -9/Exiles | Met EX-DEC 6205 | -9/Exiles | Discovered new exit (range 10) 6447 | -9/Exiles | Met EX-BIN 6547 | -9/Exiles | Build established: Hauler-Mutant 6565 | -9/Exiles | Entered Mines 6638 | -8/Mines | Lost 4 parts (1n1u2w) 6645 | -8/Mines | Discovered new exit (range 11) 6657 | -8/Mines | Destroyed 8 combat bots 7073 | -8/Mines | Discovered new exit (range 8) 7834 | -8/Mines | Entered Materials 7834 | -8/Materials | Evolved 2 slots: Utility x2 7927 | -8/Materials | Discovered new exit (range 7) 8416 | -8/Materials | Discovered new exit (range 5) 8802 | -8/Materials | Repaired Shield Generator 8854 | -8/Materials | Repaired Imp. EM Shotgun 9004 | -8/Materials | Repaired Imp. Propulsion Shielding 9794 | -8/Materials | Discovered new exit (range 4) 9818 | -8/Materials | Found Prototype Device 9834 | -8/Materials | Entered Factory 9834 | -7/Factory | Evolved 2 slots: Power x1, Propulsion x1 9843 | -7/Factory | Lost 3 parts (2u1w) 9890 | -7/Factory | Fabricated Cargo Storage Unit (x1) 10353 | -7/Factory | Lost 5 parts (3u2w) 11109 | -7/Factory | Repaired Arm. Wheel 11141 | -7/Factory | Repaired Arm. Wheel 11181 | -7/Factory | Repaired Imp. Propulsion Shielding 11213 | -7/Factory | Repaired Rocket Launcher 11276 | -7/Factory | Identified exit to Lower Caves 11459 | -7/Factory | Identified Exp. Sensor Array 12730 | -7/Factory | Entered Lower Caves 12732 | -7/Lower Caves | Core integrity fell below 50% 13217 | -7/Lower Caves | Identified Active Sensor Suite 14225 | -7/Lower Caves | Learned location of 1 exit from Factory 14231 | -7/Lower Caves | Discovered new exit (range 8) 14249 | -7/Lower Caves | Identified exit to Lower Caves 14439 | -7/Lower Caves | Build established: Hauler-Skirmisher 15471 | -7/Lower Caves | Build established: Hauler-Assassin 16101 | -7/Lower Caves | Found Prototype Device 16101 | -7/Lower Caves | Identified Heart of Steel 16350 | -7/Lower Caves | Build established: Mutant 16844 | -7/Lower Caves | Entered another Lower Caves area 16846 | -7/Lower Caves | Attracted the attention of an 0b10 outpost 16889 | -7/Lower Caves | Destroyed 9 combat bots 17004 | -7/Lower Caves | Identified exit to Factory 17268 | -7/Lower Caves | Build established: Hauler-Mutant 17640 | -7/Lower Caves | Spotted B-75 Beast 17656 | -7/Lower Caves | Destroyed B-75 Beast 17686 | -7/Lower Caves | Lost 4 parts (2p1n1u) 18203 | -7/Lower Caves | Encountered a Warlord checkpoint 18366 | -7/Lower Caves | Discovered new exit (range 3) 18367 | -7/Lower Caves | Identified exit to Zion 20694 | -7/Lower Caves | Entered Zion 20750 | -7/Zion | System corruption cleaned by Quarantine Array 21039 | -7/Zion | Discovered new exit (range 10) 21240 | -7/Zion | Visited the Megawrench Repair Shop 21334 | -7/Zion | Given the Hacking Drone Bay 21531 | -7/Zion | Found Prototype Special Weapon 21534 | -7/Zion | Found Prototype Special Weapon 21537 | -7/Zion | Found Prototype Special Weapon 21541 | -7/Zion | Found Prototype Special Weapon 21901 | -7/Zion | Learned 8 Factory zone layouts 22011 | -7/Zion | Given A8's code to call for help 22119 | -7/Zion | Learned Factory emergency access door positions 22444 | -7/Zion | Megawrench repaired 12 parts 22538 | -7/Zion | Found Prototype Device 22573 | -7/Zion | Discovered new exit (range 5) 22575 | -7/Zion | Saw the warning signs outside the Deep Caves entrance 22595 | -7/Zion | Enhanced Grunt warped into view, answering call for help 22597 | -7/Zion | Enhanced Grunt warped into view, answering call for help 22612 | -7/Zion | Entered Deep Caves 22612 | -7/Deep Caves | Accompanied by 2 allies 22903 | -7/Deep Caves | Identified RU-N14's Throwing Claymores (x4) 22934 | -7/Deep Caves | Attacked by Z-Imprinter 22944 | -7/Deep Caves | Destroyed Z-Imprinter 23322 | -7/Deep Caves | Z-Facility disabled 23402 | -7/Deep Caves | Found Prototype Protection 23402 | -7/Deep Caves | Identified Zio. Heavy Carapace 23497 | -7/Deep Caves | Found Prototype Protection 23497 | -7/Deep Caves | Identified Zio. Weapon Casing 24469 | -7/Deep Caves | Found Prototype Device 24469 | -7/Deep Caves | Identified Exp. Thermal Shield 24728 | -7/Deep Caves | Spotted as-60444 24756 | -7/Deep Caves | Core integrity fell below 20% 24761 | -7/Deep Caves | Destroyed as-60444 24789 | -7/Deep Caves | Lost 4 parts (2n2u) 24820 | -7/Deep Caves | Found GOLEM Unit 25565 | -7/Deep Caves | Heart of Steel transformed into Warbot 26480 | -7/Deep Caves | Triggered Deep Caves wall 26480 | -7/Deep Caves | Spotted AS-14265 26484 | -7/Deep Caves | Exposed GOLEM chamber 26484 | -7/Deep Caves | Destroyed AS-14265 26505 | -7/Deep Caves | Spotted AS-56672 26507 | -7/Deep Caves | Destroyed 34 combat bots 26511 | -7/Deep Caves | Destroyed AS-56672 26516 | -7/Deep Caves | Spotted as-10464 26553 | -7/Deep Caves | Destroyed by as-10464 with Assembled Focal Cannon Last Messages --------------- 26511_ Destroyed Com. Matter Pod. 26511_ AS-56672 destroyed. 26512_ GOLEM Unit springs to life. 26513_ as-19451 GOLEM Unit beginning Asb. Alloy Leg integration. 26515_ Chain reaction triggered in Lgt. Nuclear Core. 26515_ V5-QDX(s) destroyed. 26515_ Lgt. EM Pulse Cannon destroyed. 26515_ Destroyed Lgt. EM Pulse Cannon. 26517_ as-19451 destroyed. 26519_ as-10464: "DSI9AT1D G8OHIBQ29FWG 26R186 QD12WHW8W33 TDK1 81FTS" 26523_ as-10464 GOLEM Unit beginning Asb. Nanovents integration. 26524_ Overheating: Energy bleed (-304). 26524_ as-10464 Asb. Nanovents integration complete. 26524_ Zio. Light Carapace destroyed. 26525_ Power failure, Imp. Deuterium Engine shutdown. 26528_ Imp. Medium Armor Plating destroyed. 26534_ Zio. Light DM Reactor broken. 26534_ Overheating: Short circuit. 26544_ Acquired 17 matter. 26550_ Warbot destroyed. Map ----- +----------------------------------------------------+ | ?????????????????????????????????# " | | ???????????????????????????????### " | | ??????????????????????????????## | | ??????????????????????????????# | | ??????????????????????????????# | | ??????????????????????????????## | | ???????????????????????????????### | | ?????????????????????????????????#### | | ????????????????????????????????????? | | ????????????????????????????????????? | | ?????????? ! ????????????????????? | | ????????# ??????????????????? | | ?????"" g ???????????##### | | ??? = G = =g ????????## ## | | ??" ????### | | ??" = l* ???# | | ??? * ??## ### | | ???? = #??#####?? | | ????? ! #???????# | | ?????? #??????## | | ??????? *= #?????## | | ???????## s!! *= #??#### | | ????????% !!%[! *= * #??# | | ?????????" [![! ! #??# | | ?????????" !! ! ** *% #??## | | ?????????" @ * = *= ##??#### | | ????????"" =* * #?###### | | ????????# * ### ### | | ????????" = = ## | | ????????" = * = % ## | | ????????" | | ????????""" * * | | ????????" | | ????????"" ## | | ????????" ## | | ????????"" ### | | ????????" #%# #?#### | | ????????" #### ##%## ##????## | | ????????""" ###??# ##%####??????### | | ?????????" ?????####%#???????????? | | ?????????#####????????###???????????? | | | | | | | | | | | | | | | | | | | +----------------------------------------------------+ Best States ------------- Heat Dissipation 88 Energy Generation 38 Energy Capacity 1480 Matter Stores 300 Matter Capacity 300 Sight Range 16 Robot Scan Range 20 Terrain Scan Density 10 Armor Coverage 1425 Resistance: KI 15 Resistance: TH 30 Resistance: EX 15 Resistance: EM 15 Resistance: I 15 Resistance: S 15 Resistance: P 15 Propulsion Shielding 66 Evasion (%) 45 Launcher Accuracy 20 Recoil Reduction 2 Matter Filtering 50 Offensive Hacking 10 Defensive Hacking 10 Authchip Count 2 Item Schematics ----------------- Huge Storage Unit | -10/Materials | Hacked Cargo Storage Unit | -10/Materials | Hacked Machine Analyzer | -9/Materials | Scanalyzed Flak Cannon | -9/Materials | Scanalyzed Cooling System | -9/Materials | Scanalyzed Imp. Deuterium Engine | -7/Zion | Archive Angular Momentum Engine | -7/Zion | Archive Med. Treads | -7/Zion | Archive Hvy. Plasma Cannon | -7/Zion | Archive Mak. Spear | -7/Zion | Archive Arm. Medium Treads | -7/Zion | Archive Lyr. Medium Armor Plating | -7/Zion | Archive Med. Reactive Plating | -7/Zion | Archive Imp. Melee Analysis Suite | -7/Zion | Archive Fission Core | -7/Zion | Archive Imp. Carbon-fiber Leg | -7/Zion | Archive Power Amplifier | -7/Zion | Archive Field Propulsion Drive | -7/Zion | Archive Robot Schematics ------------------ H-55 Commando | -7/Zion | Archive B-48 Gladiator | -7/Zion | Archive R-06 Scavenger | -7/Zion | Archive L-61 Swordsman | -7/Zion | Archive Fabricated ------------ Cargo Storage Unit | x1 | -7/Factory | Authchip Alien Tech Used ----------------- None Achievements -------------- None Challenges ------------ None Game ------ Seed MasterPulseShield Manual? 0 Play Time 01:39:33 Cumulative 338.8 hours Start 2023.05.05 @ 03:18:03 End 2023.05.05 @ 04:54:56 Sessions 1 Manual Loads 0 Difficulty Rogue Special Mode None Game No. 479 Rogue 452 Adventurer 4 Explorer 23 Win Type - Total 19 Types 14/0/2/2/1/0/0/0/0 Lore% 77 Gallery% 92 Achievement% 82 Wizard Run 0 Options --------- ASCII 0 Keyboard 1 Movement Numpad Keybinds 0 Fullscreen 2 Font 18/SmallcapsGlow Map View 76x50 Tactical HUD 1 Map Filters NONE Filters NONE Steam 1 RUN: 61e256fa-bde4-4c5a-b190-37a4b297828b